[Event "6th Uppsala Young Champions 2019"]
[Site "Uppsala"]
[Date "2019.10.26"]
[Round "2.4"]
[White "Falkevall, Axel"]
[Black "Abdrlauf, Elham"]
[Result "0-1"]
[ECO "D94"]
[WhiteElo "2036"]
[BlackElo "2213"]
[Annotator "NA"]
[PlyCount "124"]
[EventDate "2019.10.25"]
[EventType "swiss"]
[EventCountry "SWE"]
[SourceTitle "playchess.com"]
[Source "ChessBase"]
[SourceQuality "1"]
[TimeControl "5400+30"]

1. e4 {[%emt 0:00:00]} c5 {[%emt 0:12:46]} 2. c3 {[%emt 0:00:00]} d5 {[%emt 0:01:07]} 3. exd5 {[%emt 0:00:00]} Qxd5 {[%emt 0:00:04]} 4. d4 {[%emt 0:00:00]} Nf6 {[%emt 0:00:09]} 5. Nf3 {[%emt 0:00:27]} cxd4 {[%emt 0:00:27]} 6. cxd4 {[%emt 0:00:06]} g6 {[%emt 0:00:36]} 7. Nc3 {[%emt 0:00:25]} Qd8 {[%emt 0:00:05]} 8. Bc4 {[%emt 0:01:10]} Bg7 $1 {[%emt 0:02:16]} 9. O-O {[%emt 0:01:56]} O-O {[%emt 0:00:19]} 10. h3 {[%emt 0:02:39]} Nbd7 {[%emt 0:08:18]} 11. Re1 {[%emt 0:04:32]} Nb6 {[%emt 0:01:57] D94: Grünfeld: 4 Nf3 Bg7 5 e3} 12. Bb3 {[%emt 0:00:47]} Nbd5 {[%emt 0:06:40]} 13. Bg5 {[%emt 0:13:09]} h6 $146 {[%emt 0:07:37]} ({Predecessor:} 13... b6 14. Ne5 Bb7 15. Rc1 Nxc3 16. bxc3 b5 17. Qe2 a6 {0-1 (57) Popov,I (2617)-Yandemirov,V (2461) Moscow 2010}) 14. Bxf6 {[%emt 0:08:21]} Nxf6 {[%emt 0:04:25]} 15. Qe2 {[%emt 0:02:44]} e6 {[%emt 0:01:33]} 16. Rad1 {[%emt 0:02:36]} Bd7 {[%emt 0:23:54]} 17. d5 {[%emt 0:21:44]} exd5 {[%emt 0:00:09]} 18. Nxd5 {[%emt 0:00:22]} ({Much weaker is} 18. Bxd5 $6 Nxd5 19. Nxd5 Re8 $11) 18... Nxd5 {[%emt 0:00:02]} 19. Bxd5 {[%emt 0:00:12]} Qb6 {[%emt 0:04:23]} 20. Qe7 {[%emt 0:05:29]} Bc6 {[%emt 0:02:46]} 21. Bxc6 {[%emt 0:05:49]} Qxc6 {[%emt 0:07:20]} 22. Qe2 {[%emt 0:06:03]} Qb6 {[%emt 0:02:39]} 23. Rd3 {[%emt 0:05:14]} Qa6 {[%emt 0:01:00]} 24. Ra3 {[%emt 0:00:51]} Qf6 {[%emt 0:00:30]} 25. Rb3 {[%emt 0:00:58]} b6 {[%emt 0:00:02]} 26. Nd2 {[%emt 0:04:59]} Rfd8 {[%emt 0:01:13]} 27. Nc4 {[%emt 0:01:50]} Rac8 {[%emt 0:02:31]} 28. Ne3 {[%emt 0:02:10]} Qe6 {[%emt 0:00:25]} 29. Rd1 {[%emt 0:00:59]} Rxd1+ {[%emt 0:01:20]} 30. Qxd1 {[%emt 0:00:11]} Qe4 $15 {[%emt 0:00:02]} 31. a3 {[%emt 0:04:14]} Be5 {[%emt 0:05:38]} 32. Rb4 {[%emt 0:01:04]} Qb7 {[%emt 0:00:03]} 33. Ng4 {[%emt 0:02:23]} Bg7 {[%emt 0:01:34]} 34. Qd2 {[%emt 0:00:49]} h5 {[%emt 0:00:28]} 35. Ne3 {[%emt 0:00:16]} Qe7 {[%emt 0:01:12]} 36. Rc4 {[%emt 0:01:14]} Rd8 {[%emt 0:00:14]} 37. Qc2 {[%emt 0:00:23]} Be5 {[%emt 0:00:31]} 38. Re4 {[%emt 0:01:04]} Qd6 {[%emt 0:00:44]} 39. Kf1 {[%emt 0:00:52]} Bf6 {[%emt 0:00:28]} 40. Kg1 {[%emt 0:00:35]} Kg7 {[%emt 0:00:20]} 41. Rc4 {[%emt 0:00:31]} Qd2 {[%emt 0:00:53]} 42. Qxd2 {[%emt 0:01:14]} Rxd2 {[%emt 0:00:12]} 43. Rc7 {[%emt 0:00:23]} Rxb2 {[%emt 0:01:04]} 44. Rxa7 {[%emt 0:00:08]} Rb1+ {[%emt 0:00:21]} 45. Nf1 {[%emt 0:00:27]} Bd4 {[%emt 0:00:09]} 46. Rd7 {[%emt 0:00:31]} Bc5 {[%emt 0:00:01]} 47. a4 {[%emt 0:00:29]} Ra1 {[%emt 0:00:17]} 48. Rd2 {[%emt 0:00:27]} Rxa4 {[%emt 0:00:10]} 49. Kh2 {[%emt 0:00:09]} Ra7 {[%emt 0:01:02]} 50. Ne3 {[%emt 0:00:26]} Bxe3 {[%emt 0:00:22]} 51. fxe3 {[%emt 0:00:06]} b5 {[%emt 0:00:12]} 52. Kg3 {[%emt 0:01:17]} b4 {[%emt 0:00:34]} 53. Kf4 {[%emt 0:00:15]} b3 {[%emt 0:00:13]} 54. Rb2 {[%emt 0:00:10]} Rb7 {[%emt 0:00:01]} 55. Ke4 {[%emt 0:00:39]} Kf6 {[%emt 0:00:06]} 56. Kd4 {[%emt 0:00:16]} Ke6 {[%emt 0:00:33]} 57. g4 {[%emt 0:00:30]} hxg4 {[%emt 0:00:02]} 58. hxg4 {[%emt 0:00:01]} g5 {[%emt 0:00:00]} 59. Ke4 {[%emt 0:01:18]} Rb4+ {[%emt 0:00:05]} 60. Kd3 {[%emt 0:00:03]} Ke5 {[%emt 0:00:07]} 61. Kc3 {[%emt 0:00:09]} Rb8 {[%emt 0:00:02]} 62. Kd3 {[%emt 0:00:30]} f6 {[%emt 0:00:12]} 0-1

[Event "6th Uppsala Young Champions 2019"]
[Site "Uppsala"]
[Date "2019.10.26"]
[Round "2.5"]
[White "Narva, David"]
[Black "Palozza, Christian"]
[Result "0-1"]
[ECO "B12"]
[WhiteElo "1979"]
[BlackElo "2187"]
[Annotator "ChessBase"]
[PlyCount "46"]
[EventDate "2019.10.25"]
[EventType "swiss"]
[EventCountry "SWE"]
[SourceTitle "playchess.com"]
[Source "ChessBase"]
[SourceQuality "1"]
[TimeControl "5400+30"]

1. e4 {[%emt 0:00:00]} c6 {[%emt 0:00:00]} 2. d4 {[%emt 0:00:00]} d5 {[%emt 0:00:00]} 3. e5 {[%emt 0:00:00]} c5 {[%emt 0:00:00]} 4. Nf3 {[%emt 0:00:13]} Nc6 {[%emt 0:00:00]} 5. c4 {[%emt 0:00:44]} cxd4 {[%emt 0:00:09]} 6. cxd5 {[%emt 0:05:42]} Qxd5 {[%emt 0:00:19]} 7. Nc3 {[%emt 0:03:01]} Qa5 {[%emt 0:01:03]} 8. Nxd4 {[%emt 0:01:02]} Qxe5+ {[%emt 0:00:26]} 9. Be3 {[%emt 0:00:10]} Nf6 {[%emt 0:11:27]} 10. Bb5 {[%emt 0:04:39]} Bd7 {[%emt 0:00:05]} 11. O-O {[%emt 0:09:35]} e6 {[%emt 0:11:54]} 12. Nxc6 {[%emt 0:30:21]} bxc6 {[%emt 0:01:27]} 13. Bd4 {[%emt 0:02:53]} Qd6 {[%emt 0:03:55]} 14. Bxf6 {[%emt 0:06:03]} cxb5 {[%emt 0:03:35]} 15. Qxd6 {[%emt 0:09:13]} Bxd6 {[%emt 0:00:48]} 16. Bxg7 {[%emt 0:02:23]} Rg8 {[%emt 0:00:01]} 17. Ne4 {[%emt 0:00:23]} Rxg7 {[%emt 0:05:32]} 18. Nxd6+ {[%emt 0:00:13]} Ke7 {[%emt 0:00:04]} 19. Rfd1 {[%emt 0:01:01]} Bc6 {[%emt 0:01:14]} 20. Rac1 {[%emt 0:05:40]} Bxg2 {[%emt 0:10:37]} 21. Rc7+ {[%emt 0:08:28]} Kf6 {[%emt 0:00:16]} 22. Rd4 {[%emt 0:05:18]} Ke5 {[%emt 0:02:59]} 23. Rd2 {[%emt 0:00:41]} Bd5+ {[%emt 0:00:07]} 0-1

[Event "6th Uppsala Young Champions 2019"]
[Site "Uppsala"]
[Date "2019.10.26"]
[Round "2.6"]
[White "Fjallheim, Leif Reinert"]
[Black "Vitenberg, Noam Aviv"]
[Result "0-1"]
[ECO "D00"]
[WhiteElo "1985"]
[BlackElo "2223"]
[Annotator "NA"]
[PlyCount "62"]
[EventDate "2019.10.25"]
[EventType "swiss"]
[EventCountry "SWE"]
[SourceTitle "playchess.com"]
[Source "ChessBase"]
[SourceQuality "1"]
[TimeControl "5400+30"]

{[%evp 8,60,0,-15,-10,2,0,2,-5,-12,0,-7,0,0,0,0,0,-35,-24,-44,-33,-52,-54,-75,-61,-56,-64,-74,32767,-69,32767,-71,-25,-56,4,-46,-44,-55,4,-45,-42,-70,-28,32767,-83,-116,-62,-232,-179,32767,-272,32767,32767,-29990,-29992]} 1. d4 {[%emt 0:00:00]} d5 {[%emt 0:15:23]} 2. Bf4 {[%emt 0:00:08]} Nf6 {[%emt 0:03:45]} 3. e3 {[%emt 0:00:32]} c5 {[%emt 0:01:16]} 4. c3 {[%emt 0:01:03]} Nc6 {[%emt 0:00:42]} 5. Nd2 {[%emt 0:00:19]} Bf5 {[%emt 0:02:47]} (5... Qb6 6. Qb3 Nh5 7. Qxb6 axb6 8. Bc7 cxd4 9. exd4 e5 10. Bxe5 Nxe5 11. dxe5 Bc5 12. g3 O-O {1-0 (76) Aronian,L (2765)-Caruana,F (2832) London 2018}) 6. Qb3 {[%emt 0:01:16] D00: 1 d4 d5: Unusual lines} Qd7 {[%emt 0:07:35]} 7. Ngf3 {[%emt 0:00:43]} c4 {[%emt 0:00:53]} 8. Qd1 {[%emt 0:00:14]} e6 {[%emt 0:01:03]} 9. Nh4 {[%emt 0:02:42]} Be7 {[%emt 0:03:12]} 10. Be2 {[%emt 0:04:55]} Be4 {[%emt 0:11:35]} 11. Nhf3 $146 {[%emt 0:02:39]} ({Predecessor:} 11. O-O O-O 12. Nhf3 Bd6 13. Nxe4 Nxe4 {½-½ (47) Brotherton,T (1994)-Polyakov,E (1970) ICCF email 2012}) 11... Bg6 {[%emt 0:03:36]} 12. Ne5 {[%emt 0:11:27]} Nxe5 {[%emt 0:05:05]} 13. Bxe5 {[%emt 0:01:44]} b5 {[%emt 0:05:01]} 14. Nf3 {[%emt 0:04:52]} b4 {[%emt 0:06:40]} 15. Nh4 {[%emt 0:04:57]} bxc3 {[%emt 0:04:41]} 16. bxc3 {[%emt 0:02:22]} Ne4 {[%emt 0:05:19]} 17. Nxg6 {[%emt 0:02:04]} hxg6 {[%emt 0:01:00]} 18. Qc2 {[%emt 0:01:19]} f6 {[%emt 0:02:43]} 19. Bg3 {[%emt 0:06:34]} Kf7 {[%emt 0:01:53]} 20. Rb1 {[%emt 0:04:32]} Bd8 {[%emt 0:04:00]} (20... f5 $15) 21. Bf3 {[%emt 0:02:39]} (21. Bxc4 $5 Ba5 22. Ba6 $11) 21... Nxg3 {[%emt 0:01:22]} 22. fxg3 {[%emt 0:00:12]} Bc7 {[%emt 0:00:37]} (22... Bb6 $15) 23. Qf2 {[%emt 0:11:08]} Ba5 {[%emt 0:03:05]} 24. Qc2 {[%emt 0:02:34]} f5 {[%emt 0:03:11]} 25. Kf2 {[%emt 0:06:07]} Qd6 {[%emt 0:01:28]} 26. Ke2 {[%emt 0:06:34]} Qa3 {[%emt 0:01:04]} 27. Kd2 $2 {[%emt 0:01:02]} (27. g4 $15) 27... Rab8 {[%emt 0:00:29]} 28. h3 {[%emt 0:01:32] [#]} Bxc3+ $1 {[%emt 0:01:08]} 29. Qxc3 {[%emt 0:01:29]} Qxa2+ {[%emt 0:00:24]} 30. Qc2 {[%emt 0:00:28] [#]} c3+ $1 {[%emt 0:00:17]} 31. Kd3 {[%emt 0:01:34]} Qc4# {[%emt 0:00:12]} 0-1

[Event "6th Uppsala Young Champions 2019"]
[Site "Uppsala"]
[Date "2019.10.26"]
[Round "2.7"]
[White "Ostlund, Joar"]
[Black "Vainerchuk, Barys"]
[Result "1/2-1/2"]
[ECO "E12"]
[WhiteElo "1955"]
[BlackElo "2136"]
[Annotator "NA"]
[PlyCount "65"]
[EventDate "2019.10.25"]
[EventType "swiss"]
[EventCountry "SWE"]
[SourceTitle "playchess.com"]
[Source "ChessBase"]
[SourceQuality "1"]
[TimeControl "5400+30"]

1. d4 {[%emt 0:00:00]} Nf6 {[%emt 0:00:00]} 2. c4 {[%emt 0:00:04]} e6 {[%emt 0:00:09]} 3. Nf3 {[%emt 0:00:30]} b6 {[%emt 0:00:30]} 4. Nc3 {[%emt 0:00:30]} Bb7 {[%emt 0:00:30]} 5. Bg5 {[%emt 0:00:30]} h6 {[%emt 0:00:30]} 6. Bh4 {[%emt 0:00:30]} {Predecessor:} Be7 $146 {[%emt 0:00:30]} 7. e3 {[%emt 0:00:30]} Ne4 {[%emt 0:00:30]} (7... O-O 8. Bd3 c5 9. dxc5 bxc5 10. O-O Nc6 11. a3 Nh5 12. Bxe7 Qxe7 13. Ne4 d5 14. cxd5 exd5 15. Nc3 Nf6 16. Rc1 {0-1 (53) Vovk,Y (2617)-Leko,P (2707) Berlin 2015}) 8. Bxe7 {[%emt 0:00:30]} Qxe7 {[%emt 0:00:30]} 9. Nxe4 {[%emt 0:00:30]} Bxe4 {[%emt 0:00:30]} 10. Bd3 {[%emt 0:00:30]} Qb4+ {[%emt 0:00:30]} 11. Qd2 {[%emt 0:00:30]} Qxd2+ {[%emt 0:00:30]} 12. Kxd2 {[%emt 0:00:30]} Bxd3 {[%emt 0:00:30]} 13. Kxd3 {[%emt 0:00:30]} Ke7 {[%emt 0:00:30]} 14. g4 {[%emt 0:00:30]} d6 {[%emt 0:00:30]} 15. h4 {[%emt 0:00:30]} Nd7 {[%emt 0:00:30]} 16. Nd2 {[%emt 0:00:30]} g6 {[%emt 0:00:30]} 17. h5 {[%emt 0:00:30]} g5 {[%emt 0:00:30]} 18. Raf1 {[%emt 0:00:30]} Rhg8 {[%emt 0:00:30]} 19. f3 {[%emt 0:00:30]} Raf8 {[%emt 0:00:30]} 20. Rh2 {[%emt 0:00:30]} f5 {[%emt 0:00:30]} 21. Rhf2 {[%emt 0:00:30]} Rg7 {[%emt 0:00:30]} 22. Ke2 {[%emt 0:00:30]} Rgf7 {[%emt 0:00:30]} 23. Nb1 {[%emt 0:00:30]} c5 {[%emt 0:00:30]} 24. Nc3 {[%emt 0:00:30]} cxd4 {[%emt 0:00:30]} 25. exd4 {[%emt 0:00:30]} Nb8 {[%emt 0:00:30]} 26. d5 {[%emt 0:00:30]} Nd7 {[%emt 0:00:30]} 27. dxe6 {[%emt 0:00:30]} Kxe6 {[%emt 0:00:30]} 28. Nb5 {[%emt 0:00:30]} fxg4 {[%emt 0:00:30]} 29. Nd4+ {[%emt 0:00:30]} Ke5 {[%emt 0:00:30]} 30. Nc6+ {[%emt 0:00:30]} Ke6 {[%emt 0:00:30]} 31. Nd4+ {[%emt 0:00:30]} Ke5 {[%emt 0:00:30]} 32. Nc6+ {[%emt 0:00:30]} Ke6 {[%emt 0:00:30]} 33. Nd4+ {[%emt 0:00:30]} 1/2-1/2

[Event "6th Uppsala Young Champions 2019"]
[Site "Uppsala"]
[Date "2019.10.26"]
[Round "2.8"]
[White "Ostensson, Julia"]
[Black "Berglind, Axel"]
[Result "1-0"]
[ECO "B92"]
[WhiteElo "1483"]
[BlackElo "2062"]
[Annotator "NA"]
[PlyCount "75"]
[EventDate "2019.10.25"]
[EventType "swiss"]
[EventCountry "SWE"]
[SourceTitle "playchess.com"]
[Source "ChessBase"]
[SourceQuality "1"]
[TimeControl "5400+30"]

{[%evp 15,62,8,10,8,21,-9,0,-33,-10,-22,24,7,15,-37,14,-9,0,0,10,0,14,25,28,25,58,65,32767,32767,32767,32767,32767,32767,32767,32767,32767,32767,32767,14,0,32767,32767,-29,32767,32767,32767,32767,29,32767,-16]} 1. e4 {[%emt 0:00:00]} c5 {[%emt 0:00:00]} 2. Nf3 {[%emt 0:00:00]} d6 {[%emt 0:00:00]} 3. d4 {[%emt 0:00:30]} cxd4 {[%emt 0:00:00]} 4. Nxd4 {[%emt 0:00:09]} Nf6 {[%emt 0:00:00]} 5. Nc3 {[%emt 0:00:42]} a6 {[%emt 0:00:00]} 6. Be2 {[%emt 0:00:49]} e5 {[%emt 0:00:04]} 7. Nb3 {[%emt 0:00:59]} Be7 {[%emt 0:00:17]} 8. O-O {[%emt 0:01:15]} O-O {[%emt 0:00:32]} 9. Be3 {[%emt 0:01:11]} Be6 {[%emt 0:01:18]} 10. f3 {[%emt 0:05:24]} Nbd7 {[%emt 0:01:38]} 11. Nd5 {[%emt 0:03:47]} Bxd5 {[%emt 0:00:22]} 12. exd5 {[%emt 0:00:16]} Nh5 {[%emt 0:02:23]} 13. Qd2 {[%emt 0:02:00] B92: Sicilian Najdorf: 6 Be2} (13. c4 a5 14. Rc1 Bg5 15. Bxg5 Qxg5 16. Qd2 Nf4 17. g3 a4 18. Kh1 axb3 19. gxf4 Qxf4 20. Qxf4 exf4 21. axb3 {0-1 (37) Abdullah,A (2052)-Amonatov,F (2620) Dhaka 2016}) 13... f5 {[%emt 0:01:16]} 14. c4 $146 {[%emt 0:02:35]} ({Predecessor:} 14. Qb4 Bg5 15. Bf2 Qc7 16. c4 Nf4 17. Rfe1 a5 18. Qc3 {½-½ (80) Virag,A (2239)-Lorand,N (2316) Hungary 2011}) 14... Nf4 {[%emt 0:21:36]} 15. Nd4 {[%emt 0:35:13]} Nxe2+ {[%emt 0:07:21]} 16. Nxe2 {[%emt 0:00:31]} f4 {[%emt 0:06:05]} 17. Bf2 {[%emt 0:00:21]} Rf6 {[%emt 0:00:15]} 18. Nc3 {[%emt 0:09:07]} Rh6 {[%emt 0:00:27]} 19. Ne4 {[%emt 0:02:52]} Qe8 {[%emt 0:00:42]} 20. b4 {[%emt 0:08:15]} Qh5 {[%emt 0:05:56]} 21. h3 {[%emt 0:04:05]} Nf6 {[%emt 0:00:27]} 22. Be1 {[%emt 0:02:55]} Nxe4 {[%emt 0:02:46]} 23. fxe4 {[%emt 0:00:15]} g5 {[%emt 0:01:16]} 24. Qd1 {[%emt 0:00:52]} Qxd1 {[%emt 0:21:15]} 25. Rxd1 {[%emt 0:00:11]} Kf7 {[%emt 0:00:16]} 26. Bf2 {[%emt 0:03:27]} g4 {[%emt 0:00:51]} 27. hxg4 {[%emt 0:10:24]} Rg8 {[%emt 0:00:04]} 28. c5 {[%emt 0:00:52]} (28. Rd3 $14) 28... Rxg4 {[%emt 0:00:03]} 29. c6 {[%emt 0:04:44]} bxc6 {[%emt 0:00:04]} 30. dxc6 {[%emt 0:00:11]} Rhg6 {[%emt 0:00:58]} 31. g3 {[%emt 0:01:02]} fxg3 $11 {[%emt 0:00:18]} 32. Bb6+ {[%emt 0:00:28]} Ke6 {[%emt 0:00:14]} 33. c7 {[%emt 0:00:36]} Kd7 {[%emt 0:00:55]} 34. Rf7 {[%emt 0:00:29]} Rg7 {[%emt 0:00:13]} 35. Rxe7+ {[%emt 0:00:30]} Rxe7 {[%emt 0:00:31]} 36. Rxd6+ {[%emt 0:00:12]} Kxd6 {[%emt 0:00:07]} 37. c8=Q {[%emt 0:00:04]} Rd7 {[%emt 0:00:42]} 38. Bc5+ {[%emt 0:00:22]} 1-0

[Event "6th Uppsala Young Champions 2019"]
[Site "Uppsala"]
[Date "2019.10.26"]
[Round "2.9"]
[White "Pantzar, Milton"]
[Black "Muntean, Victor"]
[Result "1-0"]
[ECO "E70"]
[WhiteElo "2376"]
[BlackElo "2020"]
[Annotator "ChessBase"]
[PlyCount "49"]
[EventDate "2019.10.25"]
[EventType "swiss"]
[EventCountry "SWE"]
[SourceTitle "playchess.com"]
[Source "ChessBase"]
[SourceQuality "1"]
[TimeControl "5400+30"]

1. d4 {[%emt 1:30:30]} Nf6 {[%emt 1:30:30]} 2. c4 {[%emt 0:00:30]} g6 {[%emt 0:00:30]} 3. Nc3 {[%emt 0:00:30]} Bg7 {[%emt 0:00:30]} 4. e4 {[%emt 0:00:30]} d6 {[%emt 0:00:30]} 5. Nge2 {[%emt 0:00:30]} O-O {[%emt 0:00:30]} 6. Ng3 {[%emt 0:00:30]} e5 {[%emt 0:00:30]} 7. d5 {[%emt 0:00:30]} h5 {[%emt 0:00:30]} 8. Bg5 {[%emt 0:00:30]} Qe8 {[%emt 0:00:30]} 9. Bd3 {[%emt 0:00:30]} Nh7 {[%emt 0:00:30]} 10. Be3 {[%emt 0:00:30]} h4 {[%emt 0:00:30]} 11. Nge2 {[%emt 0:00:30]} f5 {[%emt 0:00:30]} 12. exf5 {[%emt 0:00:30]} gxf5 {[%emt 0:00:30]} 13. f4 {[%emt 0:00:30]} Nf6 {[%emt 0:00:30]} 14. h3 {[%emt 0:00:30]} Nh5 {[%emt 0:00:30]} 15. O-O {[%emt 0:00:30]} e4 {[%emt 0:00:30]} 16. Bc2 {[%emt 0:00:30]} Qg6 {[%emt 0:00:30]} 17. Bf2 {[%emt 0:00:30]} Bf6 {[%emt 0:00:30]} 18. Qe1 {[%emt 0:00:30]} Rf7 {[%emt 0:00:30]} 19. Kh2 {[%emt 0:00:30]} Rg7 {[%emt 0:00:30]} 20. Rg1 {[%emt 0:00:30]} Qh6 {[%emt 0:00:30]} 21. Bxh4 {[%emt 0:00:30]} Nxf4 {[%emt 0:00:30]} 22. Bxf6 {[%emt 0:00:30]} Rg6 {[%emt 0:00:30]} 23. Nxf4 {[%emt 0:00:30]} Qxf4+ {[%emt 0:00:30]} 24. g3 {[%emt 0:00:30]} Qh6 {[%emt 0:00:30]} 25. Bh4 {[%emt 0:00:30]} 1-0

[Event "6th Uppsala Young Champions 2019"]
[Site "Uppsala"]
[Date "2019.10.26"]
[Round "2.10"]
[White "Roshka, Yevgeniy"]
[Black "Wernberg, Hugo"]
[Result "1-0"]
[ECO "D78"]
[WhiteElo "2369"]
[BlackElo "2006"]
[Annotator "ChessBase"]
[PlyCount "69"]
[EventDate "2019.10.25"]
[EventType "swiss"]
[EventCountry "SWE"]
[SourceTitle "playchess.com"]
[Source "ChessBase"]
[SourceQuality "1"]
[TimeControl "5400+30"]

1. d4 {[%emt 0:14:29]} d5 {[%emt 0:00:00]} 2. c4 {[%emt 0:00:04]} c6 {[%emt 0:00:00]} 3. Nf3 {[%emt 0:00:01]} Nf6 {[%emt 0:00:00]} 4. g3 {[%emt 0:02:09]} g6 {[%emt 0:01:00]} 5. Bg2 {[%emt 0:00:04]} Bg7 {[%emt 0:00:09]} 6. O-O {[%emt 0:00:19]} O-O {[%emt 0:00:16]} 7. Nc3 {[%emt 0:00:55]} e6 {[%emt 0:02:27]} 8. Qd3 {[%emt 0:01:36]} Nbd7 {[%emt 0:01:15]} 9. e4 {[%emt 0:00:56]} dxe4 {[%emt 0:00:15]} 10. Nxe4 {[%emt 0:00:02]} Nxe4 {[%emt 0:00:37]} 11. Qxe4 {[%emt 0:00:02]} e5 {[%emt 0:13:25]} 12. dxe5 {[%emt 0:01:11]} Re8 {[%emt 0:00:19]} 13. Bf4 {[%emt 0:01:47]} Nxe5 {[%emt 0:01:53]} 14. Nxe5 {[%emt 0:00:09]} Bf5 {[%emt 0:00:59]} 15. Qe3 {[%emt 0:00:43]} f6 {[%emt 0:05:21]} 16. Nxc6 {[%emt 0:00:16]} bxc6 {[%emt 0:00:54]} 17. Qc5 {[%emt 0:00:17]} Be4 {[%emt 0:03:53]} 18. Bxe4 {[%emt 0:00:27]} Rxe4 {[%emt 0:00:05]} 19. Qxc6 {[%emt 0:00:04]} f5 {[%emt 0:02:21]} 20. Rad1 {[%emt 0:00:59]} Qe8 {[%emt 0:00:40]} 21. Rd7 {[%emt 0:01:35]} Rc8 {[%emt 0:06:22]} 22. Qb7 {[%emt 0:00:52]} Bd4 {[%emt 0:02:21]} 23. Bh6 {[%emt 0:00:26]} Rb8 {[%emt 0:03:50]} 24. Qd5+ {[%emt 0:01:11]} Kh8 {[%emt 0:00:22]} 25. c5 {[%emt 0:00:47]} Bxb2 {[%emt 0:01:46]} 26. c6 {[%emt 0:00:33]} Qg8 {[%emt 0:01:35]} 27. c7 {[%emt 0:00:20]} Rc8 {[%emt 0:06:56]} 28. Rd8 {[%emt 0:00:26]} Re8 {[%emt 0:00:15]} 29. Qxg8+ {[%emt 0:00:03]} Kxg8 {[%emt 0:01:12]} 30. Rxe8+ {[%emt 0:00:04]} Rxe8 {[%emt 0:00:13]} 31. Rb1 {[%emt 0:00:02]} Be5 {[%emt 0:01:42]} 32. Re1 {[%emt 0:00:01]} Kf7 {[%emt 0:01:06]} 33. Rxe5 {[%emt 0:00:03]} Rc8 {[%emt 0:00:12]} 34. Rc5 {[%emt 0:00:03]} Ke6 {[%emt 0:00:22]} 35. Bf4 {[%emt 0:00:02]} 1-0

[Event "6th Uppsala Young Champions 2019"]
[Site "Uppsala"]
[Date "2019.10.26"]
[Round "2.11"]
[White "Crevatin, Leo"]
[Black "Mitra, Akash"]
[Result "1-0"]
[ECO "E70"]
[WhiteElo "2221"]
[BlackElo "1936"]
[Annotator "NA"]
[PlyCount "79"]
[EventDate "2019.10.25"]
[EventType "swiss"]
[EventCountry "SWE"]
[SourceTitle "playchess.com"]
[Source "ChessBase"]
[SourceQuality "1"]
[TimeControl "5400+30"]

{[%evp 15,79,78,79,100,192,90,90,32767,32767,32767,32767,32767,32767,32767,32767,32767,32767,32767,32767,32767,32767,32767,32767,60,52,0,0,0,143,135,32767,32767,32767,32767,32767,32767,32767,209,32767,70,333,354,541,578,638,741,749,394,420,442,435,412,735,764,32767,789,760,730,32767,32767,947,2277,29986,32767,32767,29989]} 1. d4 {[%emt 1:30:30]} Nf6 {[%emt 1:30:30]} 2. c4 {[%emt 0:00:30]} g6 {[%emt 0:00:30]} 3. Nc3 {[%emt 0:00:30]} Bg7 {[%emt 0:00:30]} 4. e4 {[%emt 0:00:30]} d6 {[%emt 0:00:30]} 5. Nge2 {[%emt 0:00:30]} O-O {[%emt 0:00:30]} 6. Ng3 {[%emt 0:00:30]} c5 {[%emt 0:00:30]} 7. d5 {[%emt 0:00:30]} e5 {[%emt 0:00:30]} 8. Be2 {[%emt 0:00:30] E70: King's Indian: Miscellaneous lines with 4 e4, including 5 Nge2 and 5 Bd3 0-0 6 Nge2} h5 {[%emt 0:00:30]} 9. Bg5 {[%emt 0:00:30]} a6 {[%emt 0:00:30] [#]} (9... Qc7 $16 {might work better.}) 10. O-O {[%emt 0:00:30]} (10. Bxh5 $1 $18 {is the precise move to win.} gxh5 11. Nxh5) 10... Qe8 {[%emt 0:00:30]} 11. Qd2 {[%emt 0:00:30]} Nh7 {[%emt 0:00:30]} 12. Be3 $146 {[%emt 0:00:30]} ({Predecessor:} 12. Bh6 h4 13. Nh1 Qe7 14. Bxg7 Kxg7 {½-½ (40) Bologan,V (2670)-Mamedov,R (2641) Rhodes 2013}) 12... h4 {[%emt 0:00:30]} 13. Nh1 {[%emt 0:00:30]} f5 {[%emt 0:00:30]} 14. exf5 {[%emt 0:00:30]} gxf5 {[%emt 0:00:30]} 15. f4 {[%emt 0:00:30]} Qg6 {[%emt 0:00:30]} 16. Nf2 {[%emt 0:00:30]} Nf6 {[%emt 0:00:30]} 17. fxe5 {[%emt 0:00:30]} dxe5 {[%emt 0:00:30]} 18. Bxc5 {[%emt 0:00:30]} Rf7 {[%emt 0:00:30]} 19. Nd3 {[%emt 0:00:30]} Nbd7 {[%emt 0:00:30]} 20. Bf2 {[%emt 0:00:30]} Bh6 {[%emt 0:00:30]} 21. Be3 {[%emt 0:00:30]} Rg7 {[%emt 0:00:30]} (21... h3 $11 22. g3 f4 23. Nxf4 exf4 24. Bxf4 Bf8) 22. Rf2 {[%emt 0:00:30]} f4 {[%emt 0:00:30]} 23. Nxf4 {[%emt 0:00:30]} exf4 {[%emt 0:00:30]} 24. Bxf4 {[%emt 0:00:30]} Bxf4 {[%emt 0:00:30]} 25. Qxf4 {[%emt 0:00:30]} Ng4 {[%emt 0:00:30]} 26. Bxg4 $1 {[%emt 0:00:30]} Qxg4 {[%emt 0:00:30] [#]} 27. Qc7 {[%emt 0:00:30]} (27. Re1 $1 $18 Qxf4 28. Rxf4) 27... Qg5 $2 {[%emt 0:00:30] [#]} (27... h3 $16 {keeps fighting.}) 28. Ne4 $1 {[%emt 0:00:30]} Qe7 $2 {[%emt 0:00:30]} (28... Qh6 {was necessary.} 29. Qd8+ Kh7) 29. Re1 {[%emt 0:00:30]} Kh8 {[%emt 0:00:30]} 30. d6 {[%emt 0:00:30]} Qe8 {[%emt 0:00:30]} 31. Qa5 {[%emt 0:00:30]} b6 {[%emt 0:00:30]} 32. Nf6 {[%emt 0:00:30]} Qg6 {[%emt 0:00:30]} 33. Qd5 {[%emt 0:00:30]} Bb7 {[%emt 0:00:30]} (33... Nxf6 $142 34. Qxa8 Rg8) 34. Qxb7 {[%emt 0:00:30] Double Attack} Rf8 {[%emt 0:00:30]} 35. Nxd7 {[%emt 0:00:30] Discovered Attack} Rxf2 {[%emt 0:00:30]} 36. Kxf2 {[%emt 0:00:30]} h3 {[%emt 0:00:30]} 37. g3 {[%emt 0:00:30]} Qf5+ {[%emt 0:00:30]} 38. Qf3 {[%emt 0:00:30]} Qxd7 {[%emt 0:00:30]} 39. Qh5+ {[%emt 0:00:30]} Rh7 {[%emt 0:00:30]} 40. Qe8+ {[%emt 0:00:30]} 1-0